fUST/lending_fUST_20250623
["ID","MTS","AMOUNT","RATE_DAILY","PERIOD"]
[367069601,1750645855311,-460.0,0.00022191,2]
[367069602,1750645855320,-579.93,0.00022191,2]
[367069603,1750645855329,-460.0,0.00022191,2]
[367069604,1750645855339,-647.0,0.00022191,2]
[367069605,1750645855348,-460.0,0.00022191,2]
[367069606,1750645855357,-460.0,0.00022191,2]
[367069607,1750645855367,-460.0,0.00022191,2]
[367069608,1750645855377,-514.24,0.00022191,2]
[367069609,1750645855386,-2129.92,0.00022191,2]
[367069610,1750645855395,-460.0,0.00022191,2]
[367069611,1750645855405,-460.0,0.00022191,2]
[367069612,1750645855415,-466.520664,0.00022191,2]
[367069613,1750645855425,-460.0,0.00022191,2]
[367069614,1750645855434,-1335.11,0.00022191,2]
[367069615,1750645855443,-460.0,0.00022191,2]
[367069616,1750645855453,-526.17,0.00022191,2]
[367069617,1750645855463,-460.49498288,0.00022191,2]
[367069618,1750645855473,-505.09,0.00022191,2]
[367069619,1750645855482,-460.0,0.00022191,2]
[367069620,1750645855491,-906.14,0.00022191,2]
[367069621,1750645855500,-461.6575703,0.00022191,2]
[367069622,1750645855510,-460.0,0.00022191,2]
[367069623,1750645855519,-460.0,0.00022191,2]
[367069624,1750645855528,-460.0,0.00022191,2]
[367069625,1750645855539,-460.0,0.00022191,2]
[367069626,1750645855549,-758.8,0.00022191,2]
[367069627,1750645855559,-460.0,0.00022191,2]
[367069628,1750645855569,-460.0,0.00022191,2]
[367069629,1750645855578,-460.0,0.00022191,2]
[367069630,1750645855587,-464.96932461,0.00022191,2]
[367069631,1750645855597,-461.92807769,0.00022191,2]
[367069632,1750645855606,-460.0,0.00022191,2]
[367069633,1750645855615,-823.18,0.00022191,2]
[367069634,1750645855624,-460.0,0.00022191,2]
[367069635,1750645855633,-460.0,0.00022191,2]
[367069636,1750645855643,-460.0,0.00022191,2]
[367069637,1750645855652,-460.0,0.00022191,2]
[367069638,1750645855661,-2172.65,0.00022191,2]
[367069639,1750645855670,-460.0,0.00022191,2]
[367069640,1750645855680,-3236.91,0.00022191,2]
[367069641,1750645855689,-460.0,0.00022191,2]
[367069642,1750645855698,-601.2,0.00022191,2]
[367069643,1750645855707,-1112.72,0.00022191,2]
[367069644,1750645855716,-460.0,0.00022191,2]
[367069645,1750645855726,-460.0,0.00022191,2]
[367069646,1750645855737,-460.0,0.00022191,2]
[367069647,1750645855746,-460.0,0.00022191,2]
[367069648,1750645855757,-460.0,0.00022191,2]
[367069649,1750645855766,-2249.56,0.00022191,2]
[367069650,1750645855775,-461.18932101,0.00022191,2]
[367069651,1750645855784,-787.02,0.00022191,2]
[367069652,1750645855794,-574.04,0.00022191,2]
[367069653,1750645855803,-460.0,0.00022191,2]
[367069654,1750645855813,-939.34,0.00022191,2]
[367069655,1750645855822,-460.0,0.00022191,2]
[367069656,1750645855832,-460.0,0.00022191,2]
[367069657,1750645855841,-480.76,0.00022191,2]
[367069658,1750645855851,-1115.52,0.00022191,2]
[367069659,1750645855860,-1026.53,0.00022191,2]
[367069660,1750645855870,-460.0,0.00022191,2]
[367069661,1750645855880,-460.0,0.00022191,2]
[367069662,1750645855889,-460.0,0.00022191,2]
[367069663,1750645855899,-236.09900464,0.00022191,2]
[367069664,1750645855908,-460.0,0.00022191,2]
[367069665,1750645855917,-1110.03,0.00022191,2]
[367069666,1750645855926,-460.0,0.00022191,2]
[367069667,1750645855936,-460.0,0.00022191,2]
[367069668,1750645855945,-460.0,0.00022191,2]
[367069669,1750645855955,-460.0,0.00022191,2]
[367069670,1750645855964,-460.0,0.00022191,2]
[367069671,1750645855973,-460.0,0.00022191,2]
[367069672,1750645855982,-460.0,0.00022191,2]
[367069673,1750645855992,-460.0,0.00022191,2]
[367069674,1750645856002,-460.0,0.00022191,2]
[367069675,1750645856011,-460.0,0.00022191,2]
[367069676,1750645856021,-1436.46,0.00022191,2]
[367069677,1750645856030,-151.0,0.00022191,7]
[367069678,1750645856040,-151.0,0.00022191,7]
[367069679,1750645856049,-151.0,0.00022191,7]
[367069680,1750645856059,-151.0,0.00022191,7]
[367069681,1750645856068,-151.0,0.00022191,7]
[367069682,1750645856077,-460.0,0.00022191,2]
[367069683,1750645856086,-460.0,0.00022191,2]
[367069684,1750645856096,-464.07496775,0.00022191,2]
[367069685,1750645856107,-460.0,0.00022191,2]
[367069686,1750645856117,-460.0,0.00022191,2]
[367069687,1750645856128,-460.0,0.00022191,2]
[367069688,1750645856139,-460.0,0.00022191,2]
[367069689,1750645856150,-321.91845709,0.00022191,2]
[367069690,1750645856161,-460.0,0.00022191,2]
[367069691,1750645856170,-460.0,0.00022191,2]
[367069692,1750645856179,-1249.1,0.00022191,2]
[367069693,1750645856188,-460.0,0.00022191,2]
[367069694,1750645856197,-500.0,0.00022191,2]
[367069695,1750645856208,-460.0,0.00022191,2]
[367069696,1750645856221,-461.3264952,0.00022191,2]
[367069697,1750645856230,-460.0,0.00022191,2]
[367069698,1750645856239,-460.0,0.00022191,2]
[367069699,1750645856249,-460.0,0.00022191,2]
[367069700,1750645856258,-1855.57,0.00022191,2]
[367069701,1750645856268,-460.0,0.00022191,2]
[367069702,1750645856277,-460.0,0.00022191,2]
[367069703,1750645856286,-460.0,0.00022191,2]
[367069704,1750645856296,-460.0,0.00022191,2]
[367069705,1750645856306,-151.0,0.00022191,7]
[367069706,1750645856315,-151.0,0.00022191,7]
[367069707,1750645856325,-226.755036,0.00022191,7]
[367069708,1750645856334,-151.0,0.00022191,7]
[367069709,1750645856343,-152.766159,0.00022191,7]
[367069710,1750645856352,-460.0,0.00022191,2]
[367069711,1750645856362,-980.7,0.00022191,2]
[367069712,1750645856371,-460.0,0.00022191,2]
[367069713,1750645856381,-460.0,0.00022191,2]
[367069714,1750645856390,-460.0,0.00022191,2]
[367069715,1750645856400,-460.0,0.00022191,2]
[367069716,1750645856409,-460.0,0.00022191,2]
[367069717,1750645856419,-460.0,0.00022191,2]
[367069718,1750645856429,-460.0,0.00022191,2]
[367069719,1750645856438,-1195.92,0.00022191,2]
[367069720,1750645856447,-1372.37,0.00022191,2]
[367069721,1750645856456,-460.0,0.00022191,2]
[367069722,1750645856466,-824.93,0.00022191,2]
[367069723,1750645856475,-460.0,0.00022191,2]
[367069724,1750645856485,-1536.64,0.00022191,2]
[367069725,1750645856494,-460.0,0.00022191,2]
[367069726,1750645856503,-151.0,0.00022191,7]
[367069727,1750645856512,-460.0,0.00022191,2]
[367069728,1750645856522,-151.0,0.00022191,7]
[367069729,1750645856531,-151.0,0.00022191,7]
[367069730,1750645856542,-151.0,0.00022191,7]
[367069731,1750645856551,-151.0,0.00022191,7]
[367069732,1750645856561,-460.0,0.00022191,2]
[367069733,1750645856570,-1106.97,0.00022191,2]
[367069734,1750645856579,-955.741248,0.00022191,7]
[367069735,1750645856589,-955.741248,0.00022191,7]
[367069736,1750645856599,-955.741248,0.00022191,7]
[367069737,1750645856611,-151.0,0.00022191,7]
[367069738,1750645856621,-955.741248,0.00022191,7]
[367069739,1750645856630,-151.0,0.00022191,7]
[367069740,1750645856641,-476.56,0.00022191,2]
[367069741,1750645856653,-955.741248,0.00022191,7]
[367069742,1750645856664,-151.0,0.00022191,7]
[367069743,1750645856675,-190.344854,0.00022191,7]
[367069744,1750645856686,-955.741248,0.00022191,7]
[367069745,1750645856695,-955.741248,0.00022191,7]
[367069746,1750645856705,-955.741248,0.00022191,7]
[367069747,1750645856714,-955.741248,0.00022191,7]
[367069748,1750645856727,-955.741248,0.00022191,7]
[367069749,1750645856736,-151.0,0.00022191,7]
[367069750,1750645856747,-151.0,0.00022191,7]
[367069751,1750645856756,-460.0,0.00022191,2]
[367069752,1750645856766,-151.0,0.00022191,7]
[367069753,1750645856775,-151.0,0.00022191,7]
[367069754,1750645856786,-151.0,0.00022191,7]
[367069755,1750645856797,-460.0,0.00022191,2]
[367069756,1750645856807,-151.0,0.00022191,7]
[367069757,1750645856816,-151.0,0.00022191,7]
[367069758,1750645856826,-151.0,0.00022191,7]
[367069759,1750645856836,-500.0,0.00022191,2]
[367069760,1750645856846,-151.0,0.00022191,7]
[367069761,1750645856855,-151.0,0.00022191,7]
[367069762,1750645856864,-566.24,0.00022191,2]
[367069763,1750645856873,-2130.22,0.00022191,2]
[367069764,1750645856882,-460.0,0.00022191,2]
[367069765,1750645856891,-3306.933896,0.00022191,7]
[367069766,1750645856900,-3306.933896,0.00022191,7]
[367069767,1750645856910,-460.0,0.00022191,2]
[367069768,1750645856919,-3306.933896,0.00022191,7]
[367069769,1750645856928,-3306.933896,0.00022191,7]
[367069770,1750645856937,-460.0,0.00022191,2]
[367069771,1750645856948,-460.0,0.00022191,2]
[367069772,1750645856957,-3306.933896,0.00022191,7]
[367069773,1750645856966,-374.00917382,0.00022191,2]
[367069774,1750645856975,-221.83898,0.00022191,7]
[367069775,1750645856985,-3306.933896,0.00022191,7]
[367069776,1750645856994,-3306.933896,0.00022191,7]
[367069777,1750645857003,-3306.933896,0.00022191,7]
[367069778,1750645857012,-460.0,0.00022191,2]
[367069779,1750645857022,-3306.933896,0.00022191,7]
[367069780,1750645857032,-3306.933896,0.00022191,7]
[367069781,1750645857043,-151.0,0.00022191,7]
[367069782,1750645857053,-151.0,0.00022191,7]
[367069783,1750645857062,-151.0,0.00022191,7]
[367069784,1750645857071,-151.908123,0.00022191,7]
[367069785,1750645857081,-460.0,0.00022191,2]
[367069786,1750645857089,-850.29,0.00022191,2]
[367069787,1750645857099,-460.0,0.00022191,2]
[367069788,1750645857108,-344.72765096,0.00022191,2]
[367069789,1750645857118,-460.0,0.00022191,2]
[367069790,1750645857127,-520.51,0.00022191,2]
[367069791,1750645857137,-500.26,0.00022191,2]
[367069792,1750645857148,-460.0,0.00022191,2]
[367069793,1750645857157,-460.0,0.00022191,2]
[367069794,1750645857167,-461.8395064,0.00022191,2]
[367069795,1750645857176,-460.0,0.00022191,2]
[367069796,1750645857185,-462.37914088,0.00022191,2]
[367069797,1750645857194,-460.0,0.00022191,2]
[367069798,1750645857204,-1607.62,0.00022191,2]
[367069799,1750645857216,-460.0,0.00022191,2]
[367069800,1750645857225,-151.0,0.00022191,7]
[367069801,1750645857235,-1099.68,0.00022191,2]
[367069802,1750645857244,-151.0,0.00022191,7]
[367069803,1750645857253,-151.0,0.00022191,7]
[367069804,1750645857264,-151.0,0.00022191,7]
[367069805,1750645857274,-151.0,0.00022191,7]
[367069806,1750645857282,-460.0,0.00022191,2]
[367069807,1750645857292,-151.0,0.00022191,7]
[367069808,1750645857303,-151.0,0.00022191,7]
[367069809,1750645857313,-460.0,0.00022191,2]
[367069810,1750645857323,-151.0,0.00022191,7]
[367069811,1750645857333,-241.082943,0.00022191,7]
[367069812,1750645857343,-460.0,0.00022191,2]
[367069813,1750645857354,-613.16,0.00022191,2]
[367069814,1750645857365,-460.0,0.00022191,2]
[367069815,1750645857375,-460.0,0.00022191,2]
[367069816,1750645857385,-460.0,0.00022191,2]
[367069817,1750645857395,-460.0,0.00022191,2]
[367069818,1750645857405,-478.15,0.00022191,2]
[367069819,1750645857415,-460.0,0.00022191,2]
[367069820,1750645857425,-2151.5,0.00022191,2]
[367069821,1750645857435,-460.0,0.00022191,2]
[367069822,1750645857444,-460.0,0.00022191,2]
[367069823,1750645857454,-460.0,0.00022191,2]
[367069824,1750645857463,-463.44720405,0.00022191,2]
[367069825,1750645857473,-460.0,0.00022191,2]
[367069826,1750645857483,-680.76,0.00022191,2]
[367069827,1750645857492,-460.0,0.00022191,2]
[367069828,1750645857502,-189.78707134,0.00022191,2]
[367069829,1750645857512,-151.87539272,0.00022191,2]
[367069830,1750645857522,-3827.24,0.00022191,2]
[367069831,1750645857532,-462.35952766,0.00022191,2]
[367069832,1750645857544,-460.0,0.00022191,2]
[367069833,1750645857553,-460.0,0.00022191,2]
[367069834,1750645857708,-151.0,0.00022191,7]
[367069835,1750645857720,-151.0,0.00022191,7]
[367069836,1750645857730,-460.0,0.00022191,2]
[367069837,1750645857740,-508.51,0.00022191,2]
[367069838,1750645857750,-151.0,0.00022191,7]
[367069839,1750645857760,-151.38922,0.00022191,7]
[367069840,1750645857769,-195.605503,0.00022191,7]
[367069841,1750645857781,-5733.14,0.00022191,2]
[367069842,1750645857791,-460.0,0.00022191,2]
[367069843,1750645857800,-460.0,0.00022191,2]
[367069844,1750645857809,-460.0,0.00022191,2]
[367069845,1750645857819,-765.89,0.00022191,2]
[367069846,1750645857829,-987.73,0.00022191,2]
[367069847,1750645857838,-460.0,0.00022191,2]
[367069848,1750645857848,-460.0,0.00022191,2]
[367069849,1750645857858,-460.0,0.00022191,2]
[367069850,1750645857868,-460.0,0.00022191,2]
[367069851,1750645857877,-460.0,0.00022191,2]
[367069852,1750645857887,-460.0,0.00022191,2]
[367069853,1750645857896,-151.0,0.00022191,7]
[367069854,1750645857905,-730.66,0.00022191,2]
[367069855,1750645857915,-151.0,0.00022191,7]
[367069856,1750645857924,-348.58850622,0.00022191,2]
[367069857,1750645857933,-460.0,0.00022191,2]
[367069858,1750645857942,-151.0,0.00022191,7]
[367069859,1750645857951,-460.0,0.00022191,2]
[367069860,1750645857961,-151.0,0.00022191,7]
[367069861,1750645857970,-151.0,0.00022191,7]
[367069862,1750645857979,-1131.63,0.00022191,2]
[367069863,1750645857987,-460.0,0.00022191,2]
[367069864,1750645857997,-543.37056042,0.00022191,2]
[367069865,1750645858006,-460.0,0.00022191,2]
[367069866,1750645858015,-460.0,0.00022191,2]
[367069867,1750645858026,-646.44,0.00022191,2]
[367069868,1750645858035,-460.0,0.00022191,2]
[367069869,1750645858045,-6983.22,0.00022191,2]
[367069870,1750645858054,-460.0,0.00022191,2]
[367069871,1750645858063,-460.0,0.00022191,2]
[367069872,1750645858073,-519.84,0.00022191,2]
[367069873,1750645858082,-460.0,0.00022191,2]
[367069874,1750645858091,-460.0,0.00022191,2]
[367069875,1750645858101,-460.0,0.00022191,2]
[367069876,1750645858110,-460.0,0.00022191,2]
[367069877,1750645858121,-460.0,0.00022191,2]
[367069878,1750645858130,-460.0,0.00022191,2]
[367069879,1750645858139,-764.34,0.00022191,2]
[367069880,1750645858149,-460.0,0.00022191,2]
[367069881,1750645858158,-945.7,0.00022191,2]
[367069882,1750645858167,-460.0,0.00022191,2]
[367069883,1750645858176,-460.0,0.00022191,2]
[367069884,1750645858186,-848.98,0.00022191,2]
[367069885,1750645858196,-460.0,0.00022191,2]
[367069886,1750645858205,-460.0,0.00022191,2]
[367069887,1750645858218,-381.23968664,0.00022191,2]
[367069888,1750645858227,-151.0,0.00022191,7]
[367069889,1750645858237,-151.0,0.00022191,7]
[367069890,1750645858246,-151.0,0.00022191,7]
[367069891,1750645858257,-242.921534,0.00022191,7]
[367069892,1750645858266,-780.76,0.00022191,2]
[367069893,1750645858276,-774.05,0.00022191,2]
[367069894,1750645858286,-552.36,0.00022191,2]
[367069895,1750645858295,-2357.58,0.00022191,2]
[367069896,1750645858304,-460.0,0.00022191,2]
[367069897,1750645858313,-474.29,0.00022191,2]
[367069898,1750645858323,-460.0,0.00022191,2]
[367069899,1750645858332,-524.09497732,0.00022191,7]
[367069900,1750645858341,-547.51207246,0.00022191,2]
[367069901,1750645858350,-460.0,0.00022191,2]
[367069902,1750645858359,-460.0,0.00022191,2]
[367069903,1750645858368,-463.18,0.00022191,2]
[367069904,1750645858378,-460.0,0.00022191,2]
[367069905,1750645858387,-460.0,0.00022191,2]
[367069906,1750645858398,-460.0,0.00022191,2]
[367069907,1750645858407,-460.0,0.00022191,2]
[367069908,1750645858417,-574.21,0.00022191,2]
[367069909,1750645858426,-6510.75,0.00022191,2]
[367069910,1750645858435,-1303.4,0.00022191,2]
[367069911,1750645858444,-460.0,0.00022191,2]
[367069912,1750645858454,-460.0,0.00022191,2]
[367069913,1750645858464,-460.0,0.00022191,2]
[367069914,1750645858473,-5468.3,0.00022191,2]
[367069915,1750645858483,-460.0,0.00022191,2]
[367069916,1750645858492,-460.0,0.00022191,2]
[367069917,1750645858501,-460.0,0.00022191,2]
[367069918,1750645858511,-790.04,0.00022191,2]
[367069919,1750645858520,-461.40900289,0.00022191,2]
[367069920,1750645858529,-460.0,0.00022191,2]
[367069921,1750645858539,-151.0,0.00022191,7]
[367069922,1750645858549,-151.0,0.00022191,7]
[367069923,1750645858558,-460.0,0.00022191,2]
[367069924,1750645858567,-151.0,0.00022191,7]
[367069925,1750645858576,-151.0,0.00022191,7]
[367069926,1750645858585,-151.0,0.00022191,7]
[367069927,1750645858595,-460.0,0.00022191,2]
[367069928,1750645858604,-406.86546696,0.00022191,2]
[367069929,1750645858613,-316.07529236,0.00022191,2]
[367069930,1750645858622,-151.0,0.00022191,7]
[367069931,1750645858632,-262.409636,0.00022191,7]
[367069932,1750645858642,-252.796361,0.00022191,7]
[367069933,1750645858651,-460.0,0.00022191,2]
[367069934,1750645858660,-252.796361,0.00022191,7]
[367069935,1750645858669,-252.796361,0.00022191,7]
[367069936,1750645858679,-252.796361,0.00022191,7]
[367069937,1750645858688,-1286.35,0.00022191,2]
[367069938,1750645858698,-252.796361,0.00022191,7]
[367069939,1750645858708,-1733.76,0.00022191,2]
[367069940,1750645858717,-252.796361,0.00022191,7]
[367069941,1750645858727,-252.796361,0.00022191,7]
[367069942,1750645858736,-465.31234474,0.00022191,2]
[367069943,1750645858746,-252.796361,0.00022191,7]
[367069944,1750645858755,-460.0,0.00022191,2]
[367069945,1750645858764,-252.796361,0.00022191,7]
[367069946,1750645858774,-252.796361,0.00022191,7]
[367069947,1750645858783,-460.0,0.00022191,2]
[367069948,1750645858792,-460.0,0.00022191,2]
[367069949,1750645858802,-771.37,0.00022191,2]
[367069950,1750645858812,-460.0,0.00022191,2]
[367069951,1750645858822,-460.0,0.00022191,2]
[367069952,1750645858832,-466.90449893,0.00022191,2]
[367069953,1750645858841,-591.53,0.00022191,2]
[367069954,1750645858850,-460.0,0.00022191,2]
[367069955,1750645858859,-869.11,0.00022191,2]
[367069956,1750645858870,-460.0,0.00022191,2]
[367069957,1750645858879,-657.46,0.00022191,2]
[367069958,1750645858888,-158.62824671,0.00022191,2]
[367069959,1750645858897,-533.04,0.00022191,2]
[367069960,1750645858907,-929.61,0.00022191,2]
[367069961,1750645858916,-1224.74,0.00022191,2]
[367069962,1750645858925,-1125.21,0.00022191,2]
[367069963,1750645858935,-460.0,0.00022191,2]
[367069964,1750645858944,-460.0,0.00022191,2]
[367069965,1750645858954,-811.56,0.00022191,2]
[367069966,1750645858963,-460.0,0.00022191,2]
[367069967,1750645858973,-460.0,0.00022191,2]
[367069968,1750645858982,-460.0,0.00022191,2]
[367069969,1750645858991,-1181.54,0.00022191,2]
[367069970,1750645859000,-461.33335138,0.00022191,2]
[367069971,1750645859010,-460.0,0.00022191,2]
[367069972,1750645859019,-460.0,0.00022191,2]
[367069973,1750645859029,-225.37767592,0.00022191,2]
[367069974,1750645859038,-694.28,0.00022191,2]
[367069975,1750645859048,-460.0,0.00022191,2]
[367069976,1750645859058,-777.86,0.00022191,2]
[367069977,1750645859067,-460.0,0.00022191,2]
[367069978,1750645859076,-401.60807046,0.00022191,2]
[367069979,1750645859086,-460.0,0.00022191,2]
[367069980,1750645859095,-473.40163801,0.00022191,2]
[367069981,1750645859104,-271.278913,0.00022191,7]
[367069982,1750645859114,-460.0,0.00022191,2]
[367069983,1750645859124,-271.278913,0.00022191,7]
[367069984,1750645859133,-271.278913,0.00022191,7]
[367069985,1750645859142,-271.278913,0.00022191,7]
[367069986,1750645859151,-271.278913,0.00022191,7]
[367069987,1750645859161,-460.0,0.00022191,2]
[367069988,1750645859171,-271.278913,0.00022191,7]
[367069989,1750645859181,-461.42021669,0.00022191,2]
[367069990,1750645859191,-271.278913,0.00022191,7]
[367069991,1750645859201,-271.278913,0.00022191,7]
[367069992,1750645859215,-271.278913,0.00022191,7]
[367069993,1750645859227,-271.278913,0.00022191,7]
[367069994,1750645859236,-2932.47,0.00022191,2]
[367069995,1750645859246,-872.7,0.00022191,2]
[367069996,1750645859256,-5065.01,0.00022191,2]
[367069997,1750645859265,-1067.18,0.00022191,2]
[367069998,1750645859275,-460.0,0.00022191,2]
[367069999,1750645859284,-283.24663314,0.00022191,2]
[367070000,1750645859294,-2387.14,0.00022191,2]
[367070001,1750645859304,-1945.48,0.00022191,2]
[367070002,1750645859313,-460.0,0.00022191,2]
[367070003,1750645859323,-460.0,0.00022191,2]
[367070004,1750645859331,-492.02,0.00022191,2]
[367070005,1750645859341,-460.0,0.00022191,2]
[367070006,1750645859350,-151.0,0.00022191,7]
[367070007,1750645859359,-151.0,0.00022191,7]
[367070008,1750645859368,-151.0,0.00022191,7]
[367070009,1750645859378,-460.0,0.00022191,2]
[367070010,1750645859387,-151.0,0.00022191,7]
[367070011,1750645859396,-151.0,0.00022191,7]
[367070012,1750645859405,-460.0,0.00022191,2]
[367070013,1750645859414,-212.83304,0.00022191,7]
[367070014,1750645859423,-7237.48,0.00022191,2]
[367070015,1750645859431,-756.04,0.00022191,2]
[367070016,1750645859440,-2180.77,0.00022191,2]
[367070017,1750645859449,-460.0,0.00022191,2]
[367070018,1750645859458,-460.0,0.00022191,2]
[367070019,1750645859469,-1835.93,0.00022191,2]
[367070020,1750645859478,-1439.69,0.00022191,2]
[367070021,1750645859488,-390.37632446,0.00022191,2]
[367070022,1750645859497,-460.0,0.00022191,2]
[367070023,1750645859507,-460.0,0.00022191,2]
[367070024,1750645859516,-572.98,0.00022191,2]
[367070025,1750645859526,-460.0,0.00022191,2]
[367070026,1750645859535,-867.24,0.00022191,2]
[367070027,1750645859544,-1518.2,0.00022191,2]
[367070028,1750645859553,-9517.27,0.00022191,2]
[367070029,1750645859562,-460.0,0.00022191,2]
[367070030,1750645859571,-2827.83,0.00022191,2]
[367070031,1750645859581,-480.78,0.00022191,2]
[367070032,1750645859591,-2501.81,0.00022191,2]
[367070033,1750645859601,-460.0,0.00022191,2]
[367070034,1750645859611,-460.0,0.00022191,2]
[367070035,1750645859620,-460.0,0.00022191,2]
[367070036,1750645859630,-460.0,0.00022191,2]
[367070037,1750645859640,-460.0,0.00022191,2]
[367070038,1750645859649,-460.0,0.00022191,2]
[367070039,1750645859659,-460.0,0.00022191,2]
[367070040,1750645859668,-460.0,0.00022191,2]
[367070041,1750645859677,-460.0,0.00022191,2]
[367070042,1750645859687,-710.07,0.00022191,2]
[367070043,1750645859696,-2972.5,0.00022191,2]
[367070044,1750645859706,-539.9,0.00022191,2]
[367070045,1750645859715,-865.09,0.00022191,2]
[367070046,1750645859724,-934.19,0.00022191,2]
[367070047,1750645859733,-460.0,0.00022191,2]
[367070048,1750645859743,-1351.47,0.00022191,2]
[367070049,1750645859752,-202.77114824,0.00022191,2]
[367070050,1750645859762,-2844.31,0.00022191,2]
[367070051,1750645859771,-19483.45,0.00022191,2]
[367070052,1750645859780,-576.57,0.00022191,2]
[367070053,1750645859790,-460.0,0.00022191,2]
[367070054,1750645859799,-460.0,0.00022191,2]
[367070055,1750645859808,-480.19,0.00022191,2]
[367070056,1750645859818,-705.74,0.00022191,2]
[367070057,1750645859828,-497.99,0.00022191,2]
[367070058,1750645859837,-460.0,0.00022191,2]
[367070059,1750645859847,-460.0,0.00022191,2]
[367070060,1750645859855,-212.5439095,0.00022191,2]
[367070061,1750645859864,-3597.18,0.00022191,2]
[367070062,1750645859873,-1527.56,0.00022191,2]
[367070063,1750645859882,-460.0,0.00022191,2]
[367070064,1750645859892,-835.55,0.00022191,2]
[367070065,1750645859901,-460.0,0.00022191,2]
[367070066,1750645859911,-460.0,0.00022191,2]
[367070067,1750645859919,-587.73298615,0.00022191,2]
[367070068,1750645859928,-703.91,0.00022191,2]
[367070069,1750645859937,-460.0,0.00022191,2]
[367070070,1750645859946,-460.0,0.00022191,2]
[367070071,1750645859958,-6424.06,0.00022191,2]
[367070072,1750645859968,-783.59,0.00022191,2]
[367070073,1750645859977,-460.0,0.00022191,2]
[367070074,1750645859987,-709.32,0.00022191,2]
[367070075,1750645859996,-1168.19,0.00022191,2]
[367070076,1750645860006,-4954.79,0.00022191,2]
[367070077,1750645860015,-604.54,0.00022191,2]
[367070078,1750645860025,-2123.68,0.00022191,2]
[367070079,1750645860034,-460.0,0.00022191,2]
[367070080,1750645860044,-460.0,0.00022191,2]
[367070081,1750645860053,-1193.12,0.00022191,2]
[367070082,1750645860063,-463.84384054,0.00022191,2]
[367070083,1750645860073,-1075.23,0.00022191,2]
[367070084,1750645860083,-1368.1,0.00022191,2]
[367070085,1750645860092,-3195.8,0.00022191,2]
[367070086,1750645860102,-1080.01,0.00022191,2]
[367070087,1750645860112,-460.0,0.00022191,2]
[367070088,1750645860122,-460.0,0.00022191,2]
[367070089,1750645860131,-460.0,0.00022191,2]
[367070090,1750645860140,-460.0,0.00022191,2]
[367070091,1750645860150,-345.38988497,0.00022191,2]
[367070092,1750645860159,-2998.49,0.00022191,2]
[367070093,1750645860169,-5249.77,0.00022191,2]
[367070094,1750645860179,-460.0,0.00022191,2]
[367070095,1750645860189,-2205.71,0.00022191,2]
[367070096,1750645860199,-653.95,0.00022191,2]
[367070097,1750645860210,-461.13047437,0.00022191,2]
[367070098,1750645860222,-460.0,0.00022191,2]
[367070099,1750645860233,-1763.31,0.00022191,2]
[367070100,1750645860242,-460.0,0.00022191,2]